[Event "57th Biel Festival ATO 2024"]
[Site "Biel"]
[Date "2024.07.25"]
[Round "9.31"]
[White "Trubini, Timon"]
[Black "Bangerter, Ena"]
[Result "1/2-1/2"]
[ECO "C43"]
[WhiteElo "1714"]
[BlackElo "1771"]
[Annotator "NA"]
[PlyCount "37"]
[EventDate "2024.07.03"]
[EventType "swiss"]
[EventCountry "SUI"]
[SourceTitle "playchess.com"]
[Source "ChessBase"]
[SourceQuality "1"]
[TimeControl "40/5400+30:1800+30"]

1. e4 {[%emt 0:00:03]} e5 {[%emt 0:00:03]} 2. Nf3 {[%emt 0:00:04]} Nf6 {[%emt 0:00:05]} 3. d4 {[%emt 0:00:03]} Nxe4 {[%emt 0:00:09]} 4. Bd3 {[%emt 0:00:09]} d5 {[%emt 0:00:06]} 5. Nxe5 {[%emt 0:00:07]} Nd7 {[%emt 0:00:07]} 6. Nc3 {[%emt 0:00:10]} Nxc3 {[%emt 0:00:12]} 7. bxc3 {[%emt 0:00:05]} Nxe5 {[%emt 0:00:17]} 8. dxe5 {[%emt 0:00:06]} Qh4 {[%emt 0:01:10]} 9. O-O {[%emt 0:01:27]} Be6 {[%emt 0:03:57]} 10. Be3 {[%emt 0:07:11]} Be7 {[%emt 0:03:07]} 11. Re1 {[%emt 0:06:27]} O-O {[%emt 0:02:43]} 12. f4 {[%emt 0:04:10]} Qg4 {[%emt 0:14:44]} 13. Be2 {[%emt 0:06:53]} Qh4 {[%emt 0:07:20]} 14. g3 {[%emt 0:03:08]} Qh3 {[%emt 0:07:52]} 15. Bf3 {[%emt 0:03:17]} c6 {[%emt 0:04:38]} 16. Bg2 {[%emt 0:00:55]} Qg4 {[%emt 0:04:35]} 17. Bf3 {[%emt 0:00:35]} Qh3 {[%emt 0:02:31]} 18. Bg2 {[%emt 0:01:52]} Qg4 {[%emt 0:05:13]} 19. Bf3 {[%emt 0:01:11]} 1/2-1/2

[Event "57th Biel Festival ATO 2024"]
[Site "Biel"]
[Date "2024.07.25"]
[Round "9.33"]
[White "Svendsen, Hannelore"]
[Black "Cho, Yeonhee"]
[Result "1/2-1/2"]
[ECO "D11"]
[WhiteElo "1753"]
[BlackElo "1686"]
[Annotator "NA RC"]
[PlyCount "81"]
[EventDate "2024.07.03"]
[EventType "swiss"]
[EventCountry "SUI"]
[SourceTitle "playchess.com"]
[Source "ChessBase"]
[SourceQuality "1"]
[TimeControl "40/5400+30:1800+30"]

1. d4 {[%emt 0:00:04]} d5 {[%emt 0:00:07]} 2. c4 {[%emt 0:00:14]} c6 {[%emt 0:00:15]} 3. g3 {[%emt 0:01:00]} Nf6 {[%emt 0:00:15]} 4. Nf3 {[%emt 0:00:30]} Bf5 {[%emt 0:00:16]} 5. Bg2 {[%emt 0:04:46]} e6 {[%emt 0:00:15]} 6. O-O {[%emt 0:00:40]} Be7 {[%emt 0:00:34]} 7. Qb3 {[%emt 0:04:39]} Qb6 {[%emt 0:01:18]} 8. Nc3 {[%emt 0:03:33]} Nbd7 {[%emt 0:01:33]} 9. Qxb6 {[%emt 0:04:55]} axb6 {[%emt 0:00:08]} 10. Nd2 {[%emt 0:04:34]} O-O {[%emt 0:04:44]} 11. e4 {[%emt 0:03:34]} dxe4 {[%emt 0:05:58]} 12. Ndxe4 {[%emt 0:00:48]} Rfd8 {[%emt 0:06:10]} 13. Bf4 {[%emt 0:04:05]} Nxe4 {[%emt 0:06:06]} 14. Bxe4 {[%emt 0:05:15]} Bxe4 {[%emt 0:00:24]} 15. Nxe4 {[%emt 0:01:22]} Nf6 {[%emt 0:06:38]} 16. Nxf6+ {[%emt 0:01:34]} Bxf6 {[%emt 0:00:14]} 17. Be5 {[%emt 0:00:19]} Bxe5 {[%emt 0:14:17]} 18. dxe5 {[%emt 0:00:02]} Rd2 {[%emt 0:01:38]} 19. Rfd1 {[%emt 0:05:16]} Rad8 {[%emt 0:09:51]} 20. Rxd2 {[%emt 0:02:17]} Rxd2 {[%emt 0:00:06]} 21. b3 {[%emt 0:01:21]} g5 {[%emt 0:08:49]} 22. Kf1 {[%emt 0:01:19]} g4 {[%emt 0:08:20]} 23. Ke1 {[%emt 0:04:08]} Rb2 {[%emt 0:02:09]} 24. Rd1 {[%emt 0:02:12]} Rxa2 {[%emt 0:00:29]} 25. Rd8+ {[%emt 0:00:07]} Kg7 {[%emt 0:00:06]} 26. Rd7 {[%emt 0:00:46]} Rb2 {[%emt 0:00:13]} 27. Rxb7 {[%emt 0:02:23]} Rxb3 {[%emt 0:03:20]} 28. c5 {[%emt 0:02:16]} b5 {[%emt 0:04:18]} 29. Rc7 {[%emt 0:00:48]} Rb4 {[%emt 0:13:35]} 30. Rxc6 {[%emt 0:01:33]} Re4+ {[%emt 0:00:00]} 31. Kd2 {[%emt 0:01:07]} Rxe5 {[%emt 0:00:00]} 32. Rc8 {[%emt 0:01:55]} Re4 {[%emt 0:00:52]} 33. Rb8 {[%emt 0:05:45]} Rb4 {[%emt 0:02:32]} 34. c6 {[%emt 0:07:03]} Rc4 {[%emt 0:00:06]} 35. Rxb5 {[%emt 0:00:50]} Rxc6 {[%emt 0:01:23]} 36. Rg5+ {[%emt 0:00:16]} Kh6 {[%emt 0:00:35]} 37. Rxg4 {[%emt 0:00:20]} Rc5 {[%emt 0:00:25]} 38. h4 {[%emt 0:01:39]} Re5 {[%emt 0:00:31]} 39. Ra4 {[%emt 0:01:59]} Kg6 {[%emt 0:00:53]} 40. Kd3 {[%emt 0:02:25]} Rf5 {[%emt 0:00:21]} 41. Ke3 {[%emt 0:31:26]} 1/2-1/2

[Event "57th Biel Festival ATO 2024"]
[Site "Biel"]
[Date "2024.07.25"]
[Round "9.34"]
[White "Primbetova, Raikhan"]
[Black "Hansen, Michael Bo"]
[Result "1-0"]
[ECO "A24"]
[WhiteElo "1534"]
[BlackElo "1759"]
[Annotator "NA RC"]
[PlyCount "75"]
[EventDate "2024.07.03"]
[EventType "swiss"]
[EventCountry "SUI"]
[SourceTitle "playchess.com"]
[Source "ChessBase"]
[SourceQuality "1"]
[TimeControl "40/5400+30:1800+30"]

1. c4 {[%emt 0:00:02]} Nf6 {[%emt 0:00:28]} 2. Nc3 {[%emt 0:00:05]} g6 {[%emt 0:00:09]} 3. g3 {[%emt 0:00:04]} Bg7 {[%emt 0:00:34]} 4. Bg2 {[%emt 0:00:05]} O-O {[%emt 0:00:58]} 5. d3 {[%emt 0:00:04]} c6 {[%emt 0:01:43]} 6. e4 {[%emt 0:00:36]} d6 {[%emt 0:00:32]} 7. Nge2 {[%emt 0:00:22]} Na6 {[%emt 0:01:50]} 8. O-O {[%emt 0:00:36]} e5 {[%emt 0:03:11]} 9. h3 {[%emt 0:00:24]} Nc7 {[%emt 0:06:00]} 10. f4 {[%emt 0:01:44]} exf4 {[%emt 0:00:35]} 11. gxf4 {[%emt 0:03:11]} Re8 {[%emt 0:13:03]} 12. Be3 {[%emt 0:02:41]} h6 {[%emt 0:05:46]} 13. Qd2 {[%emt 0:00:55]} Kh7 {[%emt 0:00:17]} 14. Kh2 {[%emt 0:02:49]} Qe7 {[%emt 0:03:41]} 15. Rae1 {[%emt 0:01:55]} Ng8 {[%emt 0:03:06]} 16. Bd4 {[%emt 0:11:08]} Ne6 {[%emt 0:04:35]} 17. Bxg7 {[%emt 0:01:12]} Nxg7 {[%emt 0:00:04]} 18. Nd4 {[%emt 0:08:37]} Ne6 {[%emt 0:03:57]} 19. Nxe6 {[%emt 0:12:16]} fxe6 {[%emt 0:00:15]} 20. f5 {[%emt 0:03:42]} gxf5 {[%emt 0:03:03]} 21. exf5 {[%emt 0:00:22]} e5 {[%emt 0:12:56]} 22. f6 {[%emt 0:19:32]} Nxf6 {[%emt 0:03:42]} 23. Ne4 {[%emt 0:10:19]} Rf8 {[%emt 0:01:13]} 24. Nxf6+ {[%emt 0:07:17]} Rxf6 {[%emt 0:00:10]} 25. Rxf6 {[%emt 0:06:07]} Qxf6 {[%emt 0:00:28]} 26. Rf1 {[%emt 0:01:10]} Qg7 {[%emt 0:02:33]} 27. Be4+ {[%emt 0:00:32]} Kh8 {[%emt 0:00:17]} 28. Rg1 {[%emt 0:01:12]} Qf6 {[%emt 0:00:20]} 29. Rg6 {[%emt 0:00:39]} Qf4+ {[%emt 0:00:34]} 30. Qxf4 {[%emt 0:00:05]} exf4 {[%emt 0:00:07]} 31. Rxh6+ {[%emt 0:00:13]} Kg7 {[%emt 0:00:10]} 32. Rxd6 {[%emt 0:00:32]} Kf7 {[%emt 0:00:50]} 33. Rd8 {[%emt 0:00:09]} Ke7 {[%emt 0:00:55]} 34. Rh8 {[%emt 0:00:13]} Kd6 {[%emt 0:01:00]} 35. Bf5 {[%emt 0:00:17]} Kc7 {[%emt 0:00:05]} 36. Rxc8+ {[%emt 0:00:10]} Rxc8 {[%emt 0:00:07]} 37. Bxc8 {[%emt 0:00:03]} Kxc8 {[%emt 0:00:07]} 38. Kg2 {[%emt 0:00:26]} 1-0

[Event "57th Biel Festival ATO 2024"]
[Site "Biel"]
[Date "2024.07.25"]
[Round "9.35"]
[White "Boyer, Jean-Francois"]
[Black "Fernandez Van Raap, Marcela"]
[Result "1-0"]
[ECO "B12"]
[WhiteElo "1742"]
[BlackElo "1613"]
[Annotator "NA RC"]
[PlyCount "69"]
[EventDate "2024.07.03"]
[EventType "swiss"]
[EventCountry "SUI"]
[SourceTitle "playchess.com"]
[Source "ChessBase"]
[SourceQuality "1"]
[TimeControl "40/5400+30:1800+30"]

1. e4 {[%emt 0:00:08]} c6 {[%emt 0:00:09]} 2. d4 {[%emt 0:00:40]} d5 {[%emt 0:00:07]} 3. e5 {[%emt 0:00:29]} Bf5 {[%emt 0:00:18]} 4. h4 {[%emt 0:02:01]} h5 {[%emt 0:02:35]} 5. Nc3 {[%emt 0:07:54]} e6 {[%emt 0:01:22]} 6. Be2 {[%emt 0:06:10]} Bg6 {[%emt 0:00:29]} 7. Bg5 {[%emt 0:02:08]} f6 {[%emt 0:03:49]} 8. exf6 {[%emt 0:01:20]} Nxf6 {[%emt 0:00:44]} 9. Bd3 {[%emt 0:04:39]} Bf7 {[%emt 0:02:33]} 10. Nf3 {[%emt 0:01:16]} Be7 {[%emt 0:06:38]} 11. Ne5 {[%emt 0:01:24]} Qb6 {[%emt 0:12:29]} 12. Nxf7 {[%emt 0:03:36]} Kxf7 {[%emt 0:00:12]} 13. Na4 {[%emt 0:01:17]} Qb4+ {[%emt 0:03:20]} 14. c3 {[%emt 0:00:40]} Qa5 {[%emt 0:00:22]} 15. b4 {[%emt 0:04:03]} Qc7 {[%emt 0:02:33]} 16. Rh3 {[%emt 0:01:32]} b5 {[%emt 0:06:04]} 17. Nc5 {[%emt 0:01:18]} Bxc5 {[%emt 0:02:53]} 18. bxc5 {[%emt 0:01:14]} e5 {[%emt 0:00:14]} 19. dxe5 {[%emt 0:02:03]} Qxe5+ {[%emt 0:00:23]} 20. Kf1 {[%emt 0:00:25]} Nbd7 {[%emt 0:04:33]} 21. Qc2 {[%emt 0:01:26]} Nxc5 {[%emt 0:04:31]} 22. Bg6+ {[%emt 0:00:32]} Kg8 {[%emt 0:01:54]} 23. Re1 {[%emt 0:01:03]} Qd6 {[%emt 0:06:17]} 24. Qf5 {[%emt 0:10:32]} Qd7 {[%emt 0:05:40]} 25. Qf4 {[%emt 0:03:37]} Rf8 {[%emt 0:07:39]} 26. Rf3 {[%emt 0:10:12]} Nce4 {[%emt 0:08:43]} 27. Kg1 {[%emt 0:18:34]} Qd6 {[%emt 0:02:02]} 28. Qe3 {[%emt 0:03:15]} Ng4 {[%emt 0:07:23]} 29. Rxf8+ {[%emt 0:01:02]} Kxf8 {[%emt 0:01:05]} 30. Qf3+ {[%emt 0:00:46]} Ngf6 {[%emt 0:01:08]} 31. Qf5 {[%emt 0:03:24]} Kg8 {[%emt 0:01:42]} 32. Qc8+ {[%emt 0:00:53]} Qf8 {[%emt 0:00:16]} 33. Qxc6 {[%emt 0:00:31]} Qd6 {[%emt 0:03:11]} 34. Qc8+ {[%emt 0:00:15]} Qf8 {[%emt 0:00:09]} 35. Qe6+ {[%emt 0:00:08]} 1-0

[Event "57th Biel Festival ATO 2024"]
[Site "Biel"]
[Date "2024.07.25"]
[Round "9.36"]
[White "Suwendo, Poedjo"]
[Black "Van Bogaert, Olivier"]
[Result "1/2-1/2"]
[ECO "B12"]
[WhiteElo "1727"]
[BlackElo "1815"]
[Annotator "NA"]
[PlyCount "22"]
[EventDate "2024.07.03"]
[EventType "swiss"]
[EventCountry "SUI"]
[SourceTitle "playchess.com"]
[Source "ChessBase"]
[SourceQuality "1"]
[TimeControl "40/5400+30:1800+30"]

1. e4 {[%emt 0:00:14]} c6 {[%emt 0:00:16]} 2. f4 {[%emt 0:02:36]} d5 {[%emt 0:01:11]} 3. e5 {[%emt 0:00:04]} Bf5 {[%emt 0:00:15]} 4. d4 {[%emt 0:00:51]} e6 {[%emt 0:00:11]} 5. Nf3 {[%emt 0:00:11]} c5 {[%emt 0:04:49]} 6. c3 {[%emt 0:00:08]} Nd7 {[%emt 0:07:26]} 7. b3 {[%emt 0:03:32]} Ne7 {[%emt 0:05:51]} 8. Bb5 {[%emt 0:07:54]} Nc6 {[%emt 0:01:57]} 9. O-O {[%emt 0:05:56]} Qb6 {[%emt 0:03:42]} 10. Nh4 {[%emt 0:03:53]} g6 {[%emt 0:08:36]} 11. Nxf5 {[%emt 0:04:59]} exf5 {[%emt 0:03:17]} 1/2-1/2

[Event "57th Biel Festival ATO 2024"]
[Site "Biel"]
[Date "2024.07.25"]
[Round "9.37"]
[White "Shin, Yisoo"]
[Black "Spaeti, Kurt"]
[Result "0-1"]
[ECO "B23"]
[WhiteElo "1449"]
[BlackElo "1804"]
[Annotator "NA RC"]
[PlyCount "79"]
[EventDate "2024.07.03"]
[EventType "swiss"]
[EventCountry "SUI"]
[SourceTitle "playchess.com"]
[Source "ChessBase"]
[SourceQuality "1"]
[TimeControl "40/5400+30:1800+30"]

1. e4 {[%emt 0:00:04]} c5 {[%emt 0:00:07]} 2. Nc3 {[%emt 0:00:05]} g6 {[%emt 0:00:19]} 3. f4 {[%emt 0:00:12]} d6 {[%emt 0:02:01]} 4. Nf3 {[%emt 0:00:20]} Bg7 {[%emt 0:01:15]} 5. Bc4 {[%emt 0:04:08]} Nf6 {[%emt 0:05:28]} 6. d3 {[%emt 0:00:45]} O-O {[%emt 0:00:39]} 7. O-O {[%emt 0:02:41]} Nc6 {[%emt 0:01:31]} 8. Qe1 {[%emt 0:02:23]} Bg4 {[%emt 0:08:41]} 9. Qh4 {[%emt 0:06:55]} Bxf3 {[%emt 0:05:52]} 10. Rxf3 {[%emt 0:00:30]} e6 {[%emt 0:08:00]} 11. Rh3 {[%emt 0:02:28]} h5 {[%emt 0:08:11]} 12. f5 {[%emt 0:01:13]} Ne5 {[%emt 0:21:56]} 13. fxe6 {[%emt 0:03:35]} Nxc4 {[%emt 0:03:16]} 14. exf7+ {[%emt 0:00:25]} Rxf7 {[%emt 0:00:26]} 15. dxc4 {[%emt 0:00:19]} Ng4 {[%emt 0:03:42]} 16. Qxd8+ {[%emt 0:25:34]} Rxd8 {[%emt 0:00:14]} 17. Rf3 {[%emt 0:00:29]} Bd4+ {[%emt 0:03:15]} 18. Kh1 {[%emt 0:03:01]} Rdf8 {[%emt 0:10:21]} 19. h3 {[%emt 0:07:54]} Nf2+ {[%emt 0:04:26]} 20. Kh2 {[%emt 0:02:12]} Be5+ {[%emt 0:01:29]} 21. Kg1 {[%emt 0:00:26]} Nxh3+ {[%emt 0:01:33]} 22. Kh1 {[%emt 0:03:07]} Rxf3 {[%emt 0:02:47]} 23. gxf3 {[%emt 0:00:18]} Rxf3 {[%emt 0:00:25]} 24. Kg2 {[%emt 0:01:03]} Rg3+ {[%emt 0:01:05]} 25. Kf1 {[%emt 0:00:21]} Rg1+ {[%emt 0:00:39]} 26. Ke2 {[%emt 0:00:16]} g5 {[%emt 0:00:42]} 27. Rb1 {[%emt 0:01:43]} g4 {[%emt 0:00:59]} 28. Be3 {[%emt 0:00:23]} Rxb1 {[%emt 0:00:13]} 29. Nxb1 {[%emt 0:00:05]} Bxb2 {[%emt 0:00:35]} 30. c3 {[%emt 0:00:58]} a5 {[%emt 0:02:47]} 31. a4 {[%emt 0:06:54]} Kf7 {[%emt 0:00:36]} 32. Kf1 {[%emt 0:15:02]} Kg6 {[%emt 0:00:22]} 33. Kg2 {[%emt 0:00:45]} Ng5 {[%emt 0:00:14]} 34. Bd2 {[%emt 0:03:37]} Nxe4 {[%emt 0:00:24]} 35. Be1 {[%emt 0:00:13]} Bc1 {[%emt 0:00:38]} 36. Bh4 {[%emt 0:00:15]} Bg5 {[%emt 0:00:28]} 37. Be1 {[%emt 0:00:28]} h4 {[%emt 0:00:18]} 38. Kh1 {[%emt 0:04:55]} Kf5 {[%emt 0:00:08]} 39. Kg2 {[%emt 0:02:46]} h3+ {[%emt 0:00:38]} 40. Kh2 {[%emt 0:00:00]} 0-1

[Event "57th Biel Festival ATO 2024"]
[Site "Biel"]
[Date "2024.07.25"]
[Round "9.38"]
[White "Dreke, Frank"]
[Black "Pavlov, Myroslav"]
[Result "1-0"]
[ECO "B01"]
[WhiteElo "1915"]
[BlackElo "1736"]
[Annotator "RC"]
[PlyCount "123"]
[EventDate "2024.07.03"]
[EventType "swiss"]
[EventCountry "SUI"]
[SourceTitle "playchess.com"]
[Source "ChessBase"]
[SourceQuality "1"]
[TimeControl "40/5400+30:1800+30"]

1. e4 {[%emt 0:03:11]} d5 {[%emt 0:00:07]} 2. exd5 {[%emt 0:00:04]} Nf6 {[%emt 0:00:02]} 3. Nf3 {[%emt 0:01:17]} Nxd5 {[%emt 0:00:12]} 4. d4 {[%emt 0:00:25]} Bf5 {[%emt 0:00:08]} 5. c4 {[%emt 0:01:21]} Nb4 {[%emt 0:00:58]} 6. Na3 {[%emt 0:01:12]} e6 {[%emt 0:00:16]} 7. Be2 {[%emt 0:05:38]} Be7 {[%emt 0:05:08]} 8. O-O {[%emt 0:00:45]} O-O {[%emt 0:00:06]} 9. Be3 {[%emt 0:00:41]} c5 {[%emt 0:10:09]} 10. Qd2 {[%emt 0:05:46]} cxd4 {[%emt 0:01:52]} 11. Nxd4 {[%emt 0:00:56]} Be4 {[%emt 0:04:18]} 12. Rfd1 {[%emt 0:03:10]} N8c6 {[%emt 0:01:41]} 13. Qe1 {[%emt 0:08:00]} Qe8 {[%emt 0:07:19]} 14. f3 {[%emt 0:07:33]} Bg6 {[%emt 0:00:11]} 15. Rd2 {[%emt 0:08:32]} Nxd4 {[%emt 0:10:04]} 16. Bxd4 {[%emt 0:01:14]} Nc6 {[%emt 0:00:43]} 17. Bc3 {[%emt 0:01:09]} Bc5+ {[%emt 0:06:41]} 18. Kh1 {[%emt 0:00:48]} Be3 {[%emt 0:01:24]} 19. Rdd1 {[%emt 0:05:39]} Rd8 {[%emt 0:09:29]} 20. Bd3 {[%emt 0:01:01]} Bc5 {[%emt 0:03:43]} 21. Bxg6 {[%emt 0:05:54]} hxg6 {[%emt 0:00:07]} 22. Nc2 {[%emt 0:01:44]} Qe7 {[%emt 0:01:12]} 23. b4 {[%emt 0:01:16]} Bd6 {[%emt 0:03:39]} 24. b5 {[%emt 0:06:13]} Nb8 {[%emt 0:00:15]} 25. Rxd6 {[%emt 0:04:35]} Qxd6 {[%emt 0:03:55]} 26. Bb4 {[%emt 0:00:13]} Qd3 {[%emt 0:00:31]} 27. Bxf8 {[%emt 0:01:48]} Qxc2 {[%emt 0:02:54]} 28. Rc1 {[%emt 0:04:16]} Qxa2 {[%emt 0:00:37]} 29. Bb4 {[%emt 0:00:08]} Qb3 {[%emt 0:03:40]} 30. h3 {[%emt 0:01:07]} Rd3 {[%emt 0:05:30]} 31. Qe4 {[%emt 0:13:31]} Nd7 {[%emt 0:09:24]} 32. c5 {[%emt 0:00:31]} Rd1+ {[%emt 0:03:04]} 33. Rxd1 {[%emt 0:00:01]} Qxd1+ {[%emt 0:00:02]} 34. Kh2 {[%emt 0:00:11]} Qd5 {[%emt 0:00:16]} 35. Qc2 {[%emt 0:03:56]} Ne5 {[%emt 0:00:12]} 36. f4 {[%emt 0:01:29]} Nd3 {[%emt 0:00:08]} 37. Ba3 {[%emt 0:01:39]} Nxf4 {[%emt 0:03:16]} 38. c6 {[%emt 0:00:06]} bxc6 {[%emt 0:00:49]} 39. bxc6 {[%emt 0:00:11]} Qe5 {[%emt 0:00:32]} 40. g3 {[%emt 0:00:57]} Nd5 {[%emt 0:01:44]} 41. Bc1 {[%emt 0:10:21]} Qd6 {[%emt 0:06:07]} 42. Qc4 {[%emt 0:01:02]} Nb6 {[%emt 0:01:13]} 43. Qc3 {[%emt 0:01:16]} e5 {[%emt 0:02:36]} 44. Bb2 {[%emt 0:01:02]} f6 {[%emt 0:00:47]} 45. Ba3 {[%emt 0:02:29]} Qe6 {[%emt 0:01:31]} 46. h4 {[%emt 0:04:09]} e4 {[%emt 0:02:44]} 47. Bc1 {[%emt 0:00:12]} Kf7 {[%emt 0:03:29]} 48. c7 {[%emt 0:00:41]} Qd5 {[%emt 0:05:14]} 49. c8=Q {[%emt 0:01:48]} Nxc8 {[%emt 0:00:04]} 50. Qxc8 {[%emt 0:00:11]} Qa2+ {[%emt 0:02:08]} 51. Kg1 {[%emt 0:03:59]} Qb1 {[%emt 0:00:44]} 52. Qc4+ {[%emt 0:00:22]} Kf8 {[%emt 0:00:39]} 53. Kg2 {[%emt 0:02:02]} Qb7 {[%emt 0:01:23]} 54. Ba3+ {[%emt 0:00:14]} Ke8 {[%emt 0:00:49]} 55. Qg8+ {[%emt 0:00:12]} Kd7 {[%emt 0:00:20]} 56. Qxg7+ {[%emt 0:00:25]} Kc8 {[%emt 0:02:35]} 57. Qf8+ {[%emt 0:00:54]} Kd7 {[%emt 0:01:35]} 58. Qe7+ {[%emt 0:00:21]} Kc6 {[%emt 0:00:11]} 59. Qxf6+ {[%emt 0:01:44]} Kb5 {[%emt 0:00:23]} 60. Qb2+ {[%emt 0:00:19]} Ka6 {[%emt 0:00:18]} 61. Qxb7+ {[%emt 0:00:21]} Kxb7 {[%emt 0:00:04]} 62. g4 {[%emt 0:00:10]} 1-0

[Event "57th Biel Festival ATO 2024"]
[Site "Biel"]
[Date "2024.07.25"]
[Round "9.39"]
[White "Wolffs, Walter"]
[Black "Gotti, Nicola"]
[Result "1-0"]
[ECO "C80"]
[WhiteElo "1544"]
[BlackElo "1804"]
[Annotator "NA"]
[PlyCount "73"]
[EventDate "2024.07.03"]
[EventType "swiss"]
[EventCountry "SUI"]
[SourceTitle "playchess.com"]
[Source "ChessBase"]
[SourceQuality "1"]
[TimeControl "40/5400+30:1800+30"]

1. e4 {[%emt 0:00:04]} e5 {[%emt 0:00:04]} 2. Nf3 {[%emt 0:00:04]} Nc6 {[%emt 0:00:05]} 3. Bb5 {[%emt 0:00:06]} a6 {[%emt 0:00:07]} 4. Ba4 {[%emt 0:00:04]} Nf6 {[%emt 0:00:51]} 5. O-O {[%emt 0:00:06]} Be7 {[%emt 0:00:22]} 6. c3 {[%emt 0:00:32]} Nxe4 {[%emt 0:02:32]} 7. Re1 {[%emt 0:00:07]} Nc5 {[%emt 0:03:25]} 8. Bxc6 {[%emt 0:00:18]} dxc6 {[%emt 0:01:00]} 9. Nxe5 {[%emt 0:00:10]} O-O {[%emt 0:00:58]} 10. d4 {[%emt 0:08:28]} Nd7 {[%emt 0:02:44]} 11. Nf3 {[%emt 0:00:14]} Nf6 {[%emt 0:00:28]} 12. Bg5 {[%emt 0:00:39]} Bg4 {[%emt 0:01:31]} 13. Nbd2 {[%emt 0:00:07]} Nd5 {[%emt 0:01:37]} 14. Bxe7 {[%emt 0:02:06]} Nxe7 {[%emt 0:00:13]} 15. Qb3 {[%emt 0:01:02]} Qd6 {[%emt 0:13:07]} 16. Ne4 {[%emt 0:07:41]} Qf4 {[%emt 0:03:57]} 17. Ne5 {[%emt 0:06:22]} Be6 {[%emt 0:05:22]} 18. Qxb7 {[%emt 0:12:49]} Rfb8 {[%emt 0:01:41]} 19. Qxc7 {[%emt 0:00:47]} Ng6 {[%emt 0:04:06]} 20. g3 {[%emt 0:02:51]} Qf5 {[%emt 0:01:57]} 21. Nd6 {[%emt 0:03:02]} Qh3 {[%emt 0:04:54]} 22. Qxc6 {[%emt 0:00:26]} Ne7 {[%emt 0:00:55]} 23. Qg2 {[%emt 0:01:10]} Qh5 {[%emt 0:03:15]} 24. g4 {[%emt 0:05:27]} Qg5 {[%emt 0:01:20]} 25. b3 {[%emt 0:06:44]} Bd5 {[%emt 0:02:19]} 26. Ne4 {[%emt 0:02:17]} Qh6 {[%emt 0:04:01]} 27. c4 {[%emt 0:00:54]} Bb7 {[%emt 0:00:40]} 28. g5 {[%emt 0:02:23]} Qe6 {[%emt 0:03:33]} 29. d5 {[%emt 0:03:39]} Nxd5 {[%emt 0:01:14]} 30. cxd5 {[%emt 0:00:34]} Bxd5 {[%emt 0:00:08]} 31. Rad1 {[%emt 0:00:11]} Qxe5 {[%emt 0:05:45]} 32. Rxd5 {[%emt 0:00:07]} Qb2 {[%emt 0:02:58]} 33. Nf6+ {[%emt 0:00:09]} Kh8 {[%emt 0:01:32]} 34. Nd7 {[%emt 0:03:44]} Qc3 {[%emt 0:02:22]} 35. Red1 {[%emt 0:00:07]} Re8 {[%emt 0:05:14]} 36. Ne5 {[%emt 0:02:50]} Rxe5 {[%emt 0:05:06]} 37. Rd8+ {[%emt 0:00:27]} 1-0

[Event "57th Biel Festival ATO 2024"]
[Site "Biel"]
[Date "2024.07.25"]
[Round "9.40"]
[White "Coletta, Julien"]
[Black "Speerli, Maria"]
[Result "1-0"]
[ECO "B32"]
[WhiteElo "1778"]
[BlackElo "1540"]
[Annotator "NA RC"]
[PlyCount "63"]
[EventDate "2024.07.03"]
[EventType "swiss"]
[EventCountry "SUI"]
[SourceTitle "playchess.com"]
[Source "ChessBase"]
[SourceQuality "1"]
[TimeControl "40/5400+30:1800+30"]

1. e4 {[%emt 0:00:03]} c5 {[%emt 0:00:23]} 2. Nf3 {[%emt 0:00:07]} Nc6 {[%emt 0:00:23]} 3. d4 {[%emt 0:00:06]} cxd4 {[%emt 0:00:12]} 4. Nxd4 {[%emt 0:00:07]} e5 {[%emt 0:00:15]} 5. Nb5 {[%emt 0:00:07]} d6 {[%emt 0:00:07]} 6. c4 {[%emt 0:00:08]} Be7 {[%emt 0:03:16]} 7. Bd3 {[%emt 0:01:55]} Nf6 {[%emt 0:02:07]} 8. N5c3 {[%emt 0:00:06]} Bd7 {[%emt 0:03:18]} 9. O-O {[%emt 0:02:34]} O-O {[%emt 0:05:32]} 10. Nd5 {[%emt 0:02:12]} Rc8 {[%emt 0:06:39]} 11. Nxe7+ {[%emt 0:08:01]} Nxe7 {[%emt 0:00:28]} 12. Nc3 {[%emt 0:00:42]} Be6 {[%emt 0:07:00]} 13. b3 {[%emt 0:08:24]} Ng6 {[%emt 0:02:04]} 14. Nd5 {[%emt 0:18:08]} h6 {[%emt 0:06:02]} 15. Be3 {[%emt 0:10:59]} b6 {[%emt 0:03:47]} 16. f3 {[%emt 0:11:58]} Re8 {[%emt 0:12:00]} 17. Qd2 {[%emt 0:04:50]} Kh7 {[%emt 0:08:19]} 18. Nxf6+ {[%emt 0:05:32]} Qxf6 {[%emt 0:00:41]} 19. a4 {[%emt 0:00:06]} Qd8 {[%emt 0:01:13]} 20. a5 {[%emt 0:01:01]} Rb8 {[%emt 0:02:40]} 21. axb6 {[%emt 0:02:24]} axb6 {[%emt 0:00:15]} 22. Qb4 {[%emt 0:04:28]} Re7 {[%emt 0:03:58]} 23. Bc2 {[%emt 0:02:32]} Bc8 {[%emt 0:02:06]} 24. Rfd1 {[%emt 0:00:45]} Rd7 {[%emt 0:01:39]} 25. Rd5 {[%emt 0:01:03]} Ne7 {[%emt 0:00:30]} 26. Rd3 {[%emt 0:03:00]} Nc6 {[%emt 0:03:27]} 27. Qd2 {[%emt 0:00:15]} b5 {[%emt 0:06:08]} 28. cxb5 {[%emt 0:00:59]} Rxb5 {[%emt 0:00:18]} 29. Rd1 {[%emt 0:01:00]} Nb4 {[%emt 0:00:50]} 30. Rc3 {[%emt 0:02:35]} d5 {[%emt 0:03:58]} 31. exd5+ {[%emt 0:00:34]} Nxc2 {[%emt 0:00:18]} 32. Qxc2+ {[%emt 0:00:09]} 1-0

[Event "57th Biel Festival ATO 2024"]
[Site "Biel"]
[Date "2024.07.25"]
[Round "9.41"]
[White "Galerne, Rene"]
[Black "Rossi, Patrick"]
[Result "1-0"]
[ECO "C10"]
[WhiteElo "1773"]
[BlackElo "1539"]
[Annotator "NA RC"]
[PlyCount "41"]
[EventDate "2024.07.03"]
[EventType "swiss"]
[EventCountry "SUI"]
[SourceTitle "playchess.com"]
[Source "ChessBase"]
[SourceQuality "1"]
[TimeControl "40/5400+30:1800+30"]

1. e4 {[%emt 0:00:11]} e6 {[%emt 0:00:06]} 2. d4 {[%emt 0:00:05]} d5 {[%emt 0:00:09]} 3. Nc3 {[%emt 0:00:32]} Nf6 {[%emt 0:00:13]} 4. Bg5 {[%emt 0:00:08]} dxe4 {[%emt 0:00:14]} 5. Nxe4 {[%emt 0:00:31]} Nbd7 {[%emt 0:00:14]} 6. Nf3 {[%emt 0:01:04]} h6 {[%emt 0:00:48]} 7. Nxf6+ {[%emt 0:00:28]} Nxf6 {[%emt 0:00:18]} 8. Be3 {[%emt 0:01:25]} Nd5 {[%emt 0:01:58]} 9. a3 {[%emt 0:03:29]} Be7 {[%emt 0:03:50]} 10. Bd3 {[%emt 0:01:04]} Nxe3 {[%emt 0:01:36]} 11. fxe3 {[%emt 0:00:17]} c5 {[%emt 0:00:51]} 12. O-O {[%emt 0:01:29]} Qb6 {[%emt 0:02:12]} 13. Ne5 {[%emt 0:03:10]} cxd4 {[%emt 0:10:54]} 14. Rxf7 {[%emt 0:04:12]} dxe3 {[%emt 0:02:05]} 15. Qh5 {[%emt 0:04:27]} Kd8 {[%emt 0:02:33]} 16. Be2 {[%emt 0:01:30]} Bd6 {[%emt 0:05:58]} 17. Rd1 {[%emt 0:00:53]} Qc5 {[%emt 0:02:02]} 18. b4 {[%emt 0:04:37]} g6 {[%emt 0:00:55]} 19. bxc5 {[%emt 0:00:45]} gxh5 {[%emt 0:00:09]} 20. Rxd6+ {[%emt 0:00:07]} Ke8 {[%emt 0:00:21]} 21. Bb5+ {[%emt 0:01:17]} 1-0